[Event "DVM U14 2024"]
[Site "Heidelberg"]
[Date "2024.12.28"]
[Round "4"]
[White "Shevchenko, Igor"]
[Black "Botschek, Marius"]
[Result "1/2-1/2"]
[ECO "B36"]
[WhiteElo "1788"]
[BlackElo "1788"]
[Annotator "NA RC"]
[PlyCount "161"]
[EventDate "2024.12.23"]
[EventType "team-tourn"]
[EventRounds "7"]
[EventCountry "GER"]
[SourceTitle "playchess.com"]
[Source "ChessBase"]
[SourceQuality "1"]
[TimeControl "40/5400+30:1800+30"]

1. d4 {[%emt 0:00:55]} Nf6 {[%emt 0:00:05]} 2. c4 {[%emt 0:00:25]} c5 {[%emt 0:00:06]} 3. Nf3 {[%emt 0:00:06]} cxd4 {[%emt 0:00:06]} 4. Nxd4 {[%emt 0:00:10]} Nc6 {[%emt 0:00:35]} 5. Nc3 {[%emt 0:01:04]} g6 {[%emt 0:00:32]} 6. e4 {[%emt 0:02:27]} d6 {[%emt 0:03:00]} 7. Be2 {[%emt 0:00:51]} Nxd4 {[%emt 0:00:08]} 8. Qxd4 {[%emt 0:00:05]} Bg7 {[%emt 0:00:06]} 9. h3 {[%emt 0:02:13]} O-O {[%emt 0:00:08]} 10. Qe3 {[%emt 0:06:02]} Bd7 {[%emt 0:01:18]} 11. O-O {[%emt 0:01:14]} Bc6 {[%emt 0:01:05]} 12. f4 {[%emt 0:09:14]} Nd7 {[%emt 0:15:35]} 13. Bf3 {[%emt 0:11:17]} Qb6 {[%emt 0:03:40]} 14. Nd5 {[%emt 0:07:51]} Bxd5 {[%emt 0:07:10]} 15. Qxb6 {[%emt 0:00:04]} Nxb6 {[%emt 0:00:09]} 16. cxd5 {[%emt 0:00:03]} Rac8 {[%emt 0:01:57]} 17. Rd1 {[%emt 0:02:15]} Rc2 {[%emt 0:02:14]} 18. Rb1 {[%emt 0:00:30]} Rfc8 {[%emt 0:00:22]} 19. b3 {[%emt 0:19:09]} Rxa2 {[%emt 0:02:52]} 20. Be3 {[%emt 0:00:55]} Nd7 {[%emt 0:02:51]} 21. Bg4 {[%emt 0:00:41]} f5 {[%emt 0:18:25]} 22. exf5 {[%emt 0:01:21]} h5 {[%emt 0:00:57]} 23. Bf3 {[%emt 0:04:05]} gxf5 {[%emt 0:00:17]} 24. Bxh5 {[%emt 0:00:45]} Rcc2 {[%emt 0:00:44]} 25. Bf3 {[%emt 0:01:08]} a6 {[%emt 0:05:06]} 26. Rbc1 {[%emt 0:21:41]} Kh7 {[%emt 0:01:21]} 27. Rxc2 {[%emt 0:06:23]} Rxc2 {[%emt 0:00:03]} 28. Rd3 {[%emt 0:00:22]} Nc5 {[%emt 0:01:46]} 29. Bxc5 {[%emt 0:00:05]} Rxc5 {[%emt 0:00:03]} 30. g4 {[%emt 0:00:27]} fxg4 {[%emt 0:08:32]} 31. hxg4 {[%emt 0:00:29]} Rc3 {[%emt 0:00:18]} 32. Rxc3 {[%emt 0:00:36]} Bxc3 {[%emt 0:00:03]} 33. Kf2 {[%emt 0:00:25]} Bd2 {[%emt 0:01:30]} 34. Be4+ {[%emt 0:00:08]} Kg7 {[%emt 0:00:12]} 35. Kf3 {[%emt 0:00:00]} a5 {[%emt 0:01:59]} 36. Bd3 {[%emt 0:00:43]} Bc1 {[%emt 0:01:40]} 37. Bb5 {[%emt 0:00:36]} Bd2 {[%emt 0:00:40]} 38. Ke4 {[%emt 0:00:31]} b6 {[%emt 0:00:40]} 39. Kf5 {[%emt 0:00:30]} Kf7 {[%emt 0:01:54]} 40. Bd7 {[%emt 0:00:25]} Be3 {[%emt 0:00:53]} 41. g5 {[%emt 0:30:53]} Bd4 {[%emt 0:31:37]} 42. Ke4 {[%emt 0:01:00]} Bc3 {[%emt 0:00:11]} 43. Kf3 {[%emt 0:00:00]} Bd2 {[%emt 0:00:00]} 44. Kg4 {[%emt 0:00:00]} Kg6 {[%emt 0:00:00]} 45. Be8+ {[%emt 0:00:00]} Kg7 {[%emt 0:00:00]} 46. Kf5 {[%emt 0:00:00]} Bc3 {[%emt 0:00:00]} 47. Ke4 {[%emt 0:00:00]} Kf8 {[%emt 0:00:00]} 48. Bd7 {[%emt 0:00:00]} Kf7 {[%emt 0:00:00]} 49. Kd3 {[%emt 0:00:00]} Bb2 {[%emt 0:00:00]} 50. Ke3 {[%emt 0:00:09]} Bc3 {[%emt 0:00:00]} 51. Kf3 {[%emt 0:00:05]} Bd4 {[%emt 0:00:00]} 52. Kg4 {[%emt 0:01:53]} Kg7 {[%emt 0:00:00]} 53. Kf5 {[%emt 0:02:17]} Kf7 {[%emt 0:00:00]} 54. Ke4 {[%emt 0:00:57]} Bc3 {[%emt 0:00:00]} 55. Kd3 {[%emt 0:00:10]} Bb2 {[%emt 0:00:00]} 56. Bg4 {[%emt 0:00:51]} Kg7 {[%emt 0:00:00]} 57. Bh5 {[%emt 0:00:25]} Bc1 {[%emt 0:00:00]} 58. Ke4 {[%emt 0:00:19]} Bb2 {[%emt 0:00:00]} 59. Kf5 {[%emt 0:00:24]} Kf8 {[%emt 0:00:00]} 60. Kg6 {[%emt 0:01:03]} Kg8 {[%emt 0:05:09]} 61. Be2 {[%emt 0:00:30]} Bc3 {[%emt 0:00:00]} 62. Bb5 {[%emt 0:00:26]} Bb2 {[%emt 0:00:00]} 63. Bd7 {[%emt 0:00:24]} Bc3 {[%emt 0:00:00]} 64. Be6+ {[%emt 0:00:41]} Kf8 {[%emt 0:00:00]} 65. f5 {[%emt 0:01:45]} Bd4 {[%emt 0:00:00]} 66. Kh6 {[%emt 0:00:35]} Bc3 {[%emt 0:00:00]} 67. f6 {[%emt 0:00:31]} exf6 {[%emt 0:00:00]} 68. g6 {[%emt 0:00:01]} f5 {[%emt 0:00:00]} 69. Bxf5 {[%emt 0:00:02]} Bg7+ {[%emt 0:00:00]} 70. Kh7 {[%emt 0:00:26]} Bf6 {[%emt 0:00:00]} 71. Bd7 {[%emt 0:00:19]} Bg7 {[%emt 0:00:00]} 72. Be6 {[%emt 0:00:10]} Bf6 {[%emt 0:00:00]} 73. Kh6 {[%emt 0:00:03]} Bg7+ {[%emt 0:00:00]} 74. Kg5 {[%emt 0:00:10]} Ke7 {[%emt 0:00:00]} 75. Kf5 {[%emt 0:00:10]} Bf6 {[%emt 0:02:05]} 76. Bc8 {[%emt 0:00:10]} Be5 {[%emt 0:01:19]} 77. Ba6 {[%emt 0:00:31]} Bf6 {[%emt 0:00:08]} 78. Kg4 {[%emt 0:00:26]} Bg7 {[%emt 0:00:14]} 79. Kg5 {[%emt 0:00:27]} Kf8 {[%emt 0:00:39]} 80. Kf5 {[%emt 0:01:33]} Ke7 {[%emt 0:00:07]} 81. Bb5 {[%emt 0:00:59]} 1/2-1/2

[Event "DVM U14 2024"]
[Site "Heidelberg"]
[Date "2024.12.28"]
[Round "4"]
[White "Han, Erdem"]
[Black "Dersewski, Jonas"]
[Result "1-0"]
[ECO "B38"]
[WhiteElo "1751"]
[BlackElo "1738"]
[Annotator "NA RC"]
[PlyCount "62"]
[EventDate "2024.12.23"]
[EventType "team-tourn"]
[EventRounds "7"]
[EventCountry "GER"]
[SourceTitle "playchess.com"]
[Source "ChessBase"]
[SourceQuality "1"]
[TimeControl "40/5400+30:1800+30"]

1. d4 {[%emt 0:00:03]} Nf6 {[%emt 0:00:07]} 2. c4 {[%emt 0:00:04]} g6 {[%emt 0:00:05]} 3. Nc3 {[%emt 0:00:10]} Bg7 {[%emt 0:00:05]} 4. e4 {[%emt 0:00:13]} d6 {[%emt 0:00:05]} 5. Nf3 {[%emt 0:00:12]} O-O {[%emt 0:00:07]} 6. Be2 {[%emt 0:00:32]} c5 {[%emt 0:00:16]} 7. O-O {[%emt 0:01:03]} cxd4 {[%emt 0:00:16]} 8. Nxd4 {[%emt 0:00:11]} Nc6 {[%emt 0:00:06]} 9. Be3 {[%emt 0:01:21]} Bd7 {[%emt 0:00:09]} 10. h3 {[%emt 0:04:52]} Nxd4 {[%emt 0:01:02]} 11. Bxd4 {[%emt 0:00:18]} Bc6 {[%emt 0:00:06]} 12. Bf3 {[%emt 0:03:21]} Nd7 {[%emt 0:03:05]} 13. Bxg7 {[%emt 0:07:30]} Kxg7 {[%emt 0:00:02]} 14. Qd4+ {[%emt 0:00:18]} Kg8 {[%emt 0:00:35]} 15. Nd5 {[%emt 0:01:08]} Bxd5 {[%emt 0:01:20]} 16. exd5 {[%emt 0:00:53]} a5 {[%emt 0:04:18]} 17. Rfe1 {[%emt 0:05:32]} Nc5 {[%emt 0:04:53]} 18. Bd1 {[%emt 0:02:48]} Qc7 {[%emt 0:11:10]} 19. Bc2 {[%emt 0:02:38]} Rab8 {[%emt 0:07:48]} 20. a4 {[%emt 0:07:50]} Rbc8 {[%emt 0:01:22]} 21. b3 {[%emt 0:05:29]} Rfe8 {[%emt 0:16:51]} 22. Rad1 {[%emt 0:01:58]} Qb6 {[%emt 0:02:47]} 23. Qc3 {[%emt 0:01:21]} Nd7 {[%emt 0:04:19]} 24. Qg3 {[%emt 0:04:50]} Nf6 {[%emt 0:04:21]} 25. Kh2 {[%emt 0:04:19]} Qc7 {[%emt 0:09:19]} 26. f4 {[%emt 0:04:10]} Kh8 {[%emt 0:08:19]} 27. Qg5 {[%emt 0:06:15]} Qd7 {[%emt 0:02:57]} 28. Re2 {[%emt 0:03:13]} Rg8 {[%emt 0:04:12]} 29. Rde1 {[%emt 0:00:47]} Kg7 {[%emt 0:11:22]} 30. Rxe7 {[%emt 0:00:16]} Qd8 {[%emt 0:00:16]} 31. R1e6 {[%emt 0:01:25]} Re8 {[%emt 0:04:22]} 1-0

[Event "DVM U14 2024"]
[Site "Heidelberg"]
[Date "2024.12.28"]
[Round "4"]
[White "Muller, Anker"]
[Black "Glavev, Danail"]
[Result "1-0"]
[ECO "C22"]
[WhiteElo "1744"]
[BlackElo "1690"]
[Annotator "NA RC"]
[PlyCount "77"]
[EventDate "2024.12.23"]
[EventType "team-tourn"]
[EventRounds "7"]
[EventCountry "GER"]
[SourceTitle "playchess.com"]
[Source "ChessBase"]
[SourceQuality "1"]
[TimeControl "40/5400+30:1800+30"]

1. e4 {[%emt 0:00:02]} e5 {[%emt 0:00:01]} 2. d4 {[%emt 0:00:13]} exd4 {[%emt 0:03:07]} 3. Qxd4 {[%emt 0:00:02]} Qf6 {[%emt 0:02:15]} 4. Qe3 {[%emt 0:03:24]} Nc6 {[%emt 0:03:52]} 5. Nc3 {[%emt 0:00:23]} Bb4 {[%emt 0:12:22]} 6. Bd2 {[%emt 0:00:13]} Nge7 {[%emt 0:07:01]} 7. O-O-O {[%emt 0:00:18]} O-O {[%emt 0:01:54]} 8. Bc4 {[%emt 0:00:54]} d6 {[%emt 0:02:12]} 9. f3 {[%emt 0:00:54]} Be6 {[%emt 0:01:35]} 10. Bb3 {[%emt 0:02:01]} Bxb3 {[%emt 0:01:36]} 11. axb3 {[%emt 0:00:13]} Rad8 {[%emt 0:07:07]} 12. Nh3 {[%emt 0:04:01]} Ne5 {[%emt 0:05:19]} 13. f4 {[%emt 0:03:15]} N5g6 {[%emt 0:01:11]} 14. g4 {[%emt 0:01:02]} Bc5 {[%emt 0:07:15]} 15. Qf3 {[%emt 0:06:53]} Ne5 {[%emt 0:04:48]} 16. Qg3 {[%emt 0:00:39]} N5c6 {[%emt 0:00:02]} 17. f5 {[%emt 0:04:27]} d5 {[%emt 0:08:25]} 18. Bg5 {[%emt 0:04:21]} Qd6 {[%emt 0:00:54]} 19. Bf4 {[%emt 0:00:35]} Qd7 {[%emt 0:00:32]} 20. Nxd5 {[%emt 0:01:08]} Nxd5 {[%emt 0:01:52]} 21. Rxd5 {[%emt 0:00:13]} Qe7 {[%emt 0:00:04]} 22. Re1 {[%emt 0:06:06]} Bb6 {[%emt 0:01:42]} 23. g5 {[%emt 0:01:54]} Rfe8 {[%emt 0:04:24]} 24. Rxd8 {[%emt 0:02:58]} Rxd8 {[%emt 0:00:34]} 25. e5 {[%emt 0:03:05]} Nd4 {[%emt 0:01:28]} 26. Qg4 {[%emt 0:06:19]} Qb4 {[%emt 0:05:29]} 27. Rd1 {[%emt 0:03:15]} Qe7 {[%emt 0:09:39]} 28. Kb1 {[%emt 0:04:40]} Nc6 {[%emt 0:05:24]} 29. Re1 {[%emt 0:05:07]} Qb4 {[%emt 0:00:58]} 30. Qg3 {[%emt 0:00:20]} Ba5 {[%emt 0:01:20]} 31. Rc1 {[%emt 0:01:56]} Qe7 {[%emt 0:00:51]} 32. g6 {[%emt 0:01:09]} fxg6 {[%emt 0:00:20]} 33. Bg5 {[%emt 0:00:52]} Qe8 {[%emt 0:00:50]} 34. Bxd8 {[%emt 0:00:11]} Qxd8 {[%emt 0:00:01]} 35. fxg6 {[%emt 0:00:42]} hxg6 {[%emt 0:00:14]} 36. Qxg6 {[%emt 0:00:36]} Nxe5 {[%emt 0:00:40]} 37. Qe6+ {[%emt 0:00:11]} Nf7 {[%emt 0:00:59]} 38. Rf1 {[%emt 0:00:52]} Qf8 {[%emt 0:00:40]} 39. Ng5 {[%emt 0:00:11]} 1-0

[Event "DVM U14 2024"]
[Site "Heidelberg"]
[Date "2024.12.28"]
[Round "4"]
[White "Blumenthal Tuset, Sebastian"]
[Black "Bock, Leonas"]
[Result "0-1"]
[ECO "B33"]
[WhiteElo "1732"]
[BlackElo "1668"]
[Annotator "NA RC"]
[PlyCount "62"]
[EventDate "2024.12.23"]
[EventType "team-tourn"]
[EventRounds "7"]
[EventCountry "GER"]
[SourceTitle "playchess.com"]
[Source "ChessBase"]
[SourceQuality "1"]
[TimeControl "40/5400+30:1800+30"]

1. e4 {[%emt 0:00:04]} c5 {[%emt 0:00:07]} 2. Nf3 {[%emt 0:00:17]} Nc6 {[%emt 0:00:06]} 3. d4 {[%emt 0:00:17]} cxd4 {[%emt 0:00:06]} 4. Nxd4 {[%emt 0:00:05]} Nf6 {[%emt 0:00:06]} 5. Nc3 {[%emt 0:00:08]} e5 {[%emt 0:00:12]} 6. Ndb5 {[%emt 0:00:31]} d6 {[%emt 0:00:07]} 7. Nd5 {[%emt 0:00:11]} Nxd5 {[%emt 0:00:13]} 8. exd5 {[%emt 0:00:19]} Ne7 {[%emt 0:00:41]} 9. c4 {[%emt 0:00:15]} Ng6 {[%emt 0:00:37]} 10. Be2 {[%emt 0:02:19]} a6 {[%emt 0:01:55]} 11. Nc3 {[%emt 0:00:11]} Be7 {[%emt 0:04:07]} 12. Be3 {[%emt 0:02:08]} O-O {[%emt 0:03:44]} 13. O-O {[%emt 0:00:48]} Bf5 {[%emt 0:07:06]} 14. Rc1 {[%emt 0:02:12]} Rc8 {[%emt 0:04:21]} 15. b3 {[%emt 0:04:12]} Bg5 {[%emt 0:10:52]} 16. Bd3 {[%emt 0:09:04]} Bxe3 {[%emt 0:03:45]} 17. Bxf5 {[%emt 0:01:58]} Bxc1 {[%emt 0:00:25]} 18. Bxc8 {[%emt 0:00:05]} Bb2 {[%emt 0:01:18]} 19. Na4 {[%emt 0:00:24]} Qxc8 {[%emt 0:08:46]} 20. Nxb2 {[%emt 0:00:16]} f5 {[%emt 0:00:48]} 21. Qd2 {[%emt 0:01:26]} e4 {[%emt 0:08:55]} 22. Qe3 {[%emt 0:03:26]} Re8 {[%emt 0:06:20]} 23. Qb6 {[%emt 0:02:33]} Qd7 {[%emt 0:01:43]} 24. b4 {[%emt 0:03:12]} f4 {[%emt 0:02:23]} 25. Nd1 {[%emt 0:04:41]} Ne5 {[%emt 0:05:50]} 26. Qd4 {[%emt 0:08:59]} Qf5 {[%emt 0:02:01]} 27. c5 {[%emt 0:07:10]} Nf3+ {[%emt 0:01:59]} 28. gxf3 {[%emt 0:00:28]} Qg5+ {[%emt 0:00:05]} 29. Kh1 {[%emt 0:00:08]} exf3 {[%emt 0:00:02]} 30. Rg1 {[%emt 0:00:29]} Qxg1+ {[%emt 0:00:06]} 31. Kxg1 {[%emt 0:00:10]} Re1# {[%emt 0:00:34]} 0-1

[Event "DVM U14 2024"]
[Site "Heidelberg"]
[Date "2024.12.28"]
[Round "4"]
[White "Yan, Haichen"]
[Black "Pflug, Anton"]
[Result "1/2-1/2"]
[ECO "D36"]
[WhiteElo "1732"]
[BlackElo "1812"]
[Annotator "NA RC"]
[PlyCount "131"]
[EventDate "2024.12.23"]
[EventType "team-tourn"]
[EventRounds "7"]
[EventCountry "GER"]
[SourceTitle "playchess.com"]
[Source "ChessBase"]
[SourceQuality "1"]
[TimeControl "40/5400+30:1800+30"]

1. d4 {[%emt 0:00:02]} d5 {[%emt 0:00:13]} 2. c4 {[%emt 0:00:05]} e6 {[%emt 0:00:03]} 3. Nc3 {[%emt 0:00:07]} Nf6 {[%emt 0:00:05]} 4. cxd5 {[%emt 0:00:06]} exd5 {[%emt 0:00:09]} 5. Bg5 {[%emt 0:00:16]} Be7 {[%emt 0:01:00]} 6. e3 {[%emt 0:00:10]} c6 {[%emt 0:00:06]} 7. Bd3 {[%emt 0:00:10]} O-O {[%emt 0:00:47]} 8. Qc2 {[%emt 0:00:14]} Nbd7 {[%emt 0:00:16]} 9. Nf3 {[%emt 0:00:33]} h6 {[%emt 0:01:17]} 10. Bh4 {[%emt 0:00:13]} Re8 {[%emt 0:00:08]} 11. O-O {[%emt 0:00:14]} Ne4 {[%emt 0:01:07]} 12. Bxe7 {[%emt 0:00:19]} Qxe7 {[%emt 0:00:06]} 13. Rfc1 {[%emt 0:12:18]} Ng5 {[%emt 0:12:43]} 14. Nd2 {[%emt 0:00:00]} Nf6 {[%emt 0:01:44]} 15. Rab1 {[%emt 0:00:00]} Qd6 {[%emt 0:06:54]} 16. b4 {[%emt 0:00:00]} Ng4 {[%emt 0:00:31]} 17. Nf1 {[%emt 0:00:00]} a6 {[%emt 0:01:42]} 18. Na4 {[%emt 0:00:58]} Nf6 {[%emt 0:09:29]} 19. Nb6 {[%emt 0:03:29]} Rb8 {[%emt 0:00:20]} 20. a4 {[%emt 0:00:51]} Nd7 {[%emt 0:02:42]} 21. Nxd7 {[%emt 0:04:10]} Bxd7 {[%emt 0:01:50]} 22. Ng3 {[%emt 0:07:17]} g6 {[%emt 0:03:31]} 23. Qc5 {[%emt 0:10:11]} Qf6 {[%emt 0:06:55]} 24. b5 {[%emt 0:06:46]} axb5 {[%emt 0:09:42]} 25. axb5 {[%emt 0:01:47]} h5 {[%emt 0:00:32]} 26. bxc6 {[%emt 0:15:49]} Bxc6 {[%emt 0:02:05]} 27. Bb5 {[%emt 0:01:40]} h4 {[%emt 0:02:31]} 28. Nh1 {[%emt 0:13:54]} h3 {[%emt 0:10:20]} 29. Bf1 {[%emt 0:01:44]} hxg2 {[%emt 0:08:28]} 30. Bxg2 {[%emt 0:00:17]} Nf3+ {[%emt 0:00:07]} 31. Bxf3 {[%emt 0:02:21]} Qxf3 {[%emt 0:00:06]} 32. Qd6 {[%emt 0:00:51]} Rbd8 {[%emt 0:00:52]} 33. Qg3 {[%emt 0:00:27]} Qf5 {[%emt 0:00:44]} 34. Qg2 {[%emt 0:02:23]} Ra8 {[%emt 0:09:19]} 35. Ng3 {[%emt 0:01:46]} Qe6 {[%emt 0:00:25]} 36. Ra1 {[%emt 0:01:21]} Kf8 {[%emt 0:02:06]} 37. Ne2 {[%emt 0:07:04]} Qe4 {[%emt 0:04:49]} 38. Qxe4 {[%emt 0:00:42]} dxe4 {[%emt 0:00:07]} 39. Nc3 {[%emt 0:02:51]} Rad8 {[%emt 0:02:22]} 40. Rab1 {[%emt 0:01:47]} Re7 {[%emt 0:01:44]} 41. Rb4 {[%emt 0:31:17]} Kg7 {[%emt 0:03:10]} 42. Rcb1 {[%emt 0:00:00]} f5 {[%emt 0:05:33]} 43. d5 {[%emt 0:00:00]} Bxd5 {[%emt 0:00:08]} 44. Nxd5 {[%emt 0:00:00]} Rxd5 {[%emt 0:00:07]} 45. Rxb7 {[%emt 0:00:00]} Rxb7 {[%emt 0:00:26]} 46. Rxb7+ {[%emt 0:00:00]} Kf6 {[%emt 0:00:03]} 47. Rb6+ {[%emt 0:00:00]} Kg5 {[%emt 0:00:14]} 48. Kg2 {[%emt 0:00:00]} Rd1 {[%emt 0:02:12]} 49. Ra6 {[%emt 0:00:00]} Rb1 {[%emt 0:01:06]} 50. Rc6 {[%emt 0:00:00]} Rb5 {[%emt 0:00:38]} 51. Rd6 {[%emt 0:00:00]} Kh5 {[%emt 0:00:10]} 52. h4 {[%emt 0:00:00]} Rb1 {[%emt 0:05:57]} 53. Rc6 {[%emt 0:00:00]} Ra1 {[%emt 0:00:57]} 54. Rb6 {[%emt 0:00:00]} Ra8 {[%emt 0:01:36]} 55. Rc6 {[%emt 0:00:00]} Rg8 {[%emt 0:01:31]} 56. Kh3 {[%emt 0:00:00]} g5 {[%emt 0:01:09]} 57. Rf6 {[%emt 0:00:00]} gxh4 {[%emt 0:00:59]} 58. Rxf5+ {[%emt 0:00:00]} Rg5 {[%emt 0:00:05]} 59. Rf4 {[%emt 0:00:00]} Re5 {[%emt 0:00:45]} 60. Rxh4+ {[%emt 0:00:00]} Kg5 {[%emt 0:00:32]} 61. Kg3 {[%emt 0:00:00]} Re8 {[%emt 0:00:20]} 62. f4+ {[%emt 0:00:00]} exf3 {[%emt 0:00:08]} 63. Rg4+ {[%emt 0:00:00]} Kh5 {[%emt 0:00:06]} 64. Kxf3 {[%emt 0:00:00]} Rxe3+ {[%emt 0:00:04]} 65. Kxe3 {[%emt 0:00:00]} Kxg4 {[%emt 0:00:03]} 66. Ke4 {[%emt 0:00:03]} 1/2-1/2

[Event "DVM U14 2024"]
[Site "Heidelberg"]
[Date "2024.12.28"]
[Round "4"]
[White "Kalinski, Jan"]
[Black "Meijers, Janis"]
[Result "0-1"]
[ECO "D35"]
[WhiteElo "1700"]
[BlackElo "1783"]
[Annotator "NA RC"]
[PlyCount "84"]
[EventDate "2024.12.23"]
[EventType "team-tourn"]
[EventRounds "7"]
[EventCountry "GER"]
[SourceTitle "playchess.com"]
[Source "ChessBase"]
[SourceQuality "1"]
[TimeControl "40/5400+30:1800+30"]

1. c4 {[%emt 0:00:02]} e6 {[%emt 0:00:21]} 2. g3 {[%emt 0:00:17]} d5 {[%emt 0:00:17]} 3. cxd5 {[%emt 0:00:29]} exd5 {[%emt 0:00:05]} 4. Bg2 {[%emt 0:00:12]} Nf6 {[%emt 0:00:12]} 5. Nf3 {[%emt 0:00:32]} Bd6 {[%emt 0:00:34]} 6. O-O {[%emt 0:00:17]} O-O {[%emt 0:00:02]} 7. Nc3 {[%emt 0:00:21]} c6 {[%emt 0:00:10]} 8. d4 {[%emt 0:01:30]} h6 {[%emt 0:00:56]} 9. Re1 {[%emt 0:04:31]} Re8 {[%emt 0:00:18]} 10. Bd2 {[%emt 0:02:33]} Bf5 {[%emt 0:01:27]} 11. Qb3 {[%emt 0:04:25]} Qb6 {[%emt 0:06:44]} 12. Qxb6 {[%emt 0:01:55]} axb6 {[%emt 0:00:06]} 13. Nh4 {[%emt 0:01:55]} Bh7 {[%emt 0:00:18]} 14. Nf3 {[%emt 0:07:11]} b5 {[%emt 0:00:51]} 15. a3 {[%emt 0:08:38]} Nbd7 {[%emt 0:07:09]} 16. Nd1 {[%emt 0:11:26]} b4 {[%emt 0:00:00]} 17. Bc1 {[%emt 0:10:00]} Nb6 {[%emt 0:00:00]} 18. Ne3 {[%emt 0:00:46]} Nc4 {[%emt 0:01:03]} 19. Nxc4 {[%emt 0:04:06]} dxc4 {[%emt 0:00:06]} 20. Nd2 {[%emt 0:02:08]} c3 {[%emt 0:01:28]} 21. bxc3 {[%emt 0:12:12]} bxc3 {[%emt 0:02:53]} 22. Nc4 {[%emt 0:00:59]} Bf8 {[%emt 0:02:38]} 23. f3 {[%emt 0:22:01]} c5 {[%emt 0:01:46]} 24. d5 {[%emt 0:01:04]} Nxd5 {[%emt 0:00:56]} 25. e4 {[%emt 0:00:10]} b5 {[%emt 0:01:57]} 26. Ne3 {[%emt 0:00:47]} Nxe3 {[%emt 0:00:27]} 27. Rxe3 {[%emt 0:00:30]} b4 {[%emt 0:00:26]} 28. Re2 {[%emt 0:01:39]} b3 {[%emt 0:01:20]} 29. Rb1 {[%emt 0:00:49]} b2 {[%emt 0:00:19]} 30. Be3 {[%emt 0:00:15]} Rxa3 {[%emt 0:00:25]} 31. Ree1 {[%emt 0:00:26]} Rb8 {[%emt 0:00:23]} 32. Bf4 {[%emt 0:00:41]} Rb7 {[%emt 0:00:15]} 33. Be5 {[%emt 0:00:03]} f6 {[%emt 0:00:13]} 34. Bxc3 {[%emt 0:00:20]} Rxc3 {[%emt 0:00:11]} 35. Red1 {[%emt 0:00:40]} c4 {[%emt 0:00:49]} 36. Bf1 {[%emt 0:00:20]} f5 {[%emt 0:00:35]} 37. e5 {[%emt 0:00:16]} f4 {[%emt 0:00:12]} 38. Rxb2 {[%emt 0:00:56]} Rxb2 {[%emt 0:00:10]} 39. e6 {[%emt 0:00:17]} Bf5 {[%emt 0:01:24]} 40. Re1 {[%emt 0:00:44]} Re3 {[%emt 0:00:55]} 41. Rxe3 {[%emt 0:30:26]} fxe3 {[%emt 0:30:07]} 42. Bxc4 {[%emt 0:00:08]} Be7 {[%emt 0:00:05]} 0-1